[Event "Titled Tuesday Blitz December 13 Late 2022"]
[White "Sariego Figueredo, Wilfredo"]
[Black "Steenbekkers, Franck"]
[WhiteFideId "3500080"]
[BlackFideId "1004220"]
[WhiteElo "2309"]
[BlackElo "1947"]
[Result "1-0"]
[Round "11"]
[TimeControl "180+1"]
[Date "2022.12.14"]
[WhiteClock "0:00:59"]
[BlackClock "0:01:16"]

1. d4 {[%clk 0:03:00]}  Nf6 {[%clk 0:02:58]} 2. Bf4 {[%clk 0:02:59]}  g6 {[%clk 0:02:57]} 3. Nc3 {[%clk 0:02:59]}  Bg7 {[%clk 0:02:56]} 4. e4 {[%clk 0:02:59]}  d5 {[%clk 0:02:55]} 5. e5 {[%clk 0:02:57]}  Ne4 {[%clk 0:02:55]} 6. Nxe4 {[%clk 0:02:51]}  dxe4 {[%clk 0:02:54]} 7. Qd2 {[%clk 0:02:50]}  c5 {[%clk 0:02:53]} 8. O-O-O {[%clk 0:02:44]}  cxd4 {[%clk 0:02:52]} 9. Qxd4 {[%clk 0:02:42]}  Qxd4 {[%clk 0:02:51]} 10. Rxd4 {[%clk 0:02:43]}  Bf5 {[%clk 0:02:50]} 11. Bb5+ {[%clk 0:02:41]}  Nc6 {[%clk 0:02:49]} 12. Bxc6+ {[%clk 0:02:36]}  bxc6 {[%clk 0:02:48]} 13. Ne2 {[%clk 0:02:30]}  O-O {[%clk 0:02:44]} 14. Ng3 {[%clk 0:02:28]}  f6 {[%clk 0:02:41]} 15. exf6 {[%clk 0:02:23]}  Bxf6 {[%clk 0:02:40]} 16. Rc4 {[%clk 0:02:19]}  Rfc8 {[%clk 0:02:38]} 17. Nxe4 {[%clk 0:02:12]}  Bg7 {[%clk 0:02:32]} 18. Nc3 {[%clk 0:02:08]}  Rab8 {[%clk 0:02:31]} 19. Re1 {[%clk 0:02:04]}  e6 {[%clk 0:02:27]} 20. Bxb8 {[%clk 0:02:02]}  Rxb8 {[%clk 0:02:25]} 21. Rxc6 {[%clk 0:02:02]}  a5 {[%clk 0:02:21]} 22. f3 {[%clk 0:01:57]}  h5 {[%clk 0:02:20]} 23. h3 {[%clk 0:01:56]}  h4 {[%clk 0:02:19]} 24. b3 {[%clk 0:01:53]}  Rd8 {[%clk 0:02:13]} 25. Ne4 {[%clk 0:01:51]}  Bh6+ {[%clk 0:02:11]} 26. Kb1 {[%clk 0:01:47]}  Bxe4 {[%clk 0:02:09]} 27. fxe4 {[%clk 0:01:44]}  Rd2 {[%clk 0:02:08]} 28. Rg1 {[%clk 0:01:39]}  Be3 {[%clk 0:02:06]} 29. Re1 {[%clk 0:01:37]}  Bh6 {[%clk 0:01:56]} 30. Rxe6 {[%clk 0:01:35]}  Rxg2 {[%clk 0:01:56]} 31. Rf1 {[%clk 0:01:30]}  Bg7 {[%clk 0:01:48]} 32. Re7 {[%clk 0:01:26]}  g5 {[%clk 0:01:46]} 33. e5 {[%clk 0:01:24]}  g4 {[%clk 0:01:45]} 34. hxg4 {[%clk 0:01:20]}  h3 {[%clk 0:01:45]} 35. Rff7 {[%clk 0:01:19]}  Rxg4 {[%clk 0:01:31]} 36. Rf3 {[%clk 0:01:13]}  h2 {[%clk 0:01:29]} 37. Re8+ {[%clk 0:01:08]}  Bf8 {[%clk 0:01:20]} 38. Rexf8+ {[%clk 0:01:06]}  Kg7 {[%clk 0:01:20]} 39. R8f7+ {[%clk 0:01:04]}  Kg6 {[%clk 0:01:18]} 40. R7f6+ {[%clk 0:01:04]}  Kg7 {[%clk 0:01:18]} 41. Rh3 {[%clk 0:00:59]}  Rg1+ {[%clk 0:01:17]} 42. Kb2 {[%clk 0:00:58]}  h1=Q {[%clk 0:01:16]} 43. Rxh1 {[%clk 0:00:59]}  Rxh1 {[%clk 0:01:16]} 44. Ra6 {[%clk 0:00:59]} 1-0


[Site "https://www.chess.com"]

[Event "Titled Tuesday Blitz December 13 Late 2022"]
[White "Seletsky, Grigory"]
[Black "Al-Tarboush, Ward"]
[WhiteFideId "14112191"]
[BlackFideId "7601450"]
[WhiteElo "2492"]
[BlackElo "2263"]
[Result "0-1"]
[Round "11"]
[TimeControl "180+1"]
[Date "2022.12.14"]
[WhiteClock "0:00:02"]
[BlackClock "0:00:36"]

1. Nf3 {[%clk 0:02:57]}  Nf6 {[%clk 0:02:59]} 2. c4 {[%clk 0:02:56]}  g6 {[%clk 0:02:58]} 3. Nc3 {[%clk 0:02:56]}  c5 {[%clk 0:02:57]} 4. b3 {[%clk 0:02:51]}  Bg7 {[%clk 0:02:57]} 5. Bb2 {[%clk 0:02:52]}  O-O {[%clk 0:02:57]} 6. e3 {[%clk 0:02:50]}  Nc6 {[%clk 0:02:58]} 7. Be2 {[%clk 0:02:49]}  d5 {[%clk 0:02:57]} 8. cxd5 {[%clk 0:02:46]}  Nxd5 {[%clk 0:02:58]} 9. O-O {[%clk 0:02:44]}  Bg4 {[%clk 0:02:56]} 10. a3 {[%clk 0:02:41]}  e6 {[%clk 0:02:53]} 11. Qc2 {[%clk 0:02:39]}  Qf6 {[%clk 0:02:42]} 12. h3 {[%clk 0:02:22]}  Bxf3 {[%clk 0:02:22]} 13. Bxf3 {[%clk 0:02:22]}  Nxc3 {[%clk 0:02:09]} 14. Bxc3 {[%clk 0:02:18]}  e5 {[%clk 0:02:09]} 15. b4 {[%clk 0:02:13]}  Qd6 {[%clk 0:01:58]} 16. bxc5 {[%clk 0:01:58]}  Qxc5 {[%clk 0:01:59]} 17. Qb2 {[%clk 0:01:56]}  Rab8 {[%clk 0:01:53]} 18. Rfc1 {[%clk 0:01:55]}  Qe7 {[%clk 0:01:50]} 19. a4 {[%clk 0:01:42]}  f5 {[%clk 0:01:47]} 20. Bd5+ {[%clk 0:01:23]}  Kh8 {[%clk 0:01:47]} 21. d3 {[%clk 0:01:22]}  a5 {[%clk 0:01:42]} 22. Rab1 {[%clk 0:01:19]}  Qd6 {[%clk 0:01:37]} 23. Bc4 {[%clk 0:01:08]}  h5 {[%clk 0:01:35]} 24. Qb6 {[%clk 0:00:56]}  f4 {[%clk 0:01:33]} 25. e4 {[%clk 0:00:50]}  f3 {[%clk 0:01:33]} 26. g3 {[%clk 0:00:50]}  Qd7 {[%clk 0:01:32]} 27. Kh2 {[%clk 0:00:45]}  h4 {[%clk 0:01:32]} 28. g4 {[%clk 0:00:37]}  Bh6 {[%clk 0:01:28]} 29. Rd1 {[%clk 0:00:28]}  Bf4+ {[%clk 0:01:24]} 30. Kh1 {[%clk 0:00:27]}  Rf6 {[%clk 0:01:21]} 31. Bd5 {[%clk 0:00:26]}  Rbf8 {[%clk 0:01:21]} 32. Qxb7 {[%clk 0:00:24]}  Qe8 {[%clk 0:01:10]} 33. Rb6 {[%clk 0:00:11]}  Nb4 {[%clk 0:01:03]} 34. Rxf6 {[%clk 0:00:09]}  Rxf6 {[%clk 0:01:03]} 35. Bxb4 {[%clk 0:00:09]}  axb4 {[%clk 0:01:02]} 36. Qxb4 {[%clk 0:00:10]}  Bg3 {[%clk 0:01:02]} 37. fxg3 {[%clk 0:00:08]}  hxg3 {[%clk 0:01:03]} 38. Qd2 {[%clk 0:00:05]}  Kg7 {[%clk 0:00:51]} 39. Qg5 {[%clk 0:00:03]}  Qh8 {[%clk 0:00:49]} 40. h4 {[%clk 0:00:02]}  g2+ {[%clk 0:00:48]} 41. Kg1 {[%clk 0:00:02]}  Qd8 {[%clk 0:00:45]} 42. d4 {[%clk 0:00:02]}  Qa5 {[%clk 0:00:36]} 0-1


[Site "https://www.chess.com"]

[Event "Titled Tuesday Blitz December 13 Late 2022"]
[White "Sjugirov, Sanan"]
[Black "Martinez Ramirez, Lennis"]
[WhiteFideId "4189302"]
[BlackFideId "3509079"]
[WhiteElo "2613"]
[BlackElo "2439"]
[Result "1-0"]
[Round "11"]
[TimeControl "180+1"]
[Date "2022.12.13"]
[WhiteClock "0:01:34"]
[BlackClock "0:00:46"]

1. d4 {[%clk 0:03:00]}  d5 {[%clk 0:02:59]} 2. c4 {[%clk 0:03:01]}  e6 {[%clk 0:02:58]} 3. Nf3 {[%clk 0:03:01]}  Nf6 {[%clk 0:02:58]} 4. g3 {[%clk 0:03:02]}  dxc4 {[%clk 0:02:57]} 5. Bg2 {[%clk 0:03:02]}  a6 {[%clk 0:02:58]} 6. O-O {[%clk 0:03:02]}  Nc6 {[%clk 0:02:58]} 7. Be3 {[%clk 0:02:59]}  Rb8 {[%clk 0:02:52]} 8. Qc1 {[%clk 0:02:55]}  b5 {[%clk 0:02:47]} 9. b3 {[%clk 0:02:55]}  Na5 {[%clk 0:02:46]} 10. Nbd2 {[%clk 0:02:39]}  cxb3 {[%clk 0:02:42]} 11. axb3 {[%clk 0:02:39]}  Bb4 {[%clk 0:02:41]} 12. Ne5 {[%clk 0:02:26]}  Rb6 {[%clk 0:02:19]} 13. Qc2 {[%clk 0:02:09]}  Bd7 {[%clk 0:01:57]} 14. Ne4 {[%clk 0:01:55]}  O-O {[%clk 0:01:43]} 15. Nxf6+ {[%clk 0:01:53]}  gxf6 {[%clk 0:01:43]} 16. Nd3 {[%clk 0:01:53]}  Nc6 {[%clk 0:01:37]} 17. d5 {[%clk 0:01:52]}  exd5 {[%clk 0:01:30]} 18. Bxd5 {[%clk 0:01:50]}  a5 {[%clk 0:01:14]} 19. Bxb6 {[%clk 0:01:48]}  cxb6 {[%clk 0:01:15]} 20. Bxc6 {[%clk 0:01:48]}  Qc7 {[%clk 0:01:14]} 21. Nxb4 {[%clk 0:01:47]}  Rc8 {[%clk 0:01:12]} 22. Bxd7 {[%clk 0:01:45]}  Qxd7 {[%clk 0:01:09]} 23. Qd3 {[%clk 0:01:44]}  Qh3 {[%clk 0:00:47]} 24. Nd5 {[%clk 0:01:39]}  Rc5 {[%clk 0:00:46]} 25. Nxf6+ {[%clk 0:01:34]}  Kg7 {[%clk 0:00:46]} 26. Qxh7+ {[%clk 0:01:34]} 1-0


[Site "https://www.chess.com"]

[Event "Titled Tuesday Blitz December 13 Late 2022"]
[White "Souleidis, Georgios"]
[Black "Przybylski, Wojciech"]
[WhiteFideId "4206827"]
[BlackFideId "1117599"]
[WhiteElo "2401"]
[BlackElo "2217"]
[Result "1-0"]
[Round "11"]
[TimeControl "180+1"]
[Date "2022.12.14"]
[WhiteClock "0:00:27"]
[BlackClock "0:00:03"]

1. e4 {[%clk 0:03:00]}  e5 {[%clk 0:02:55]} 2. Nc3 {[%clk 0:03:00]}  Nf6 {[%clk 0:02:54]} 3. d4 {[%clk 0:03:00]}  exd4 {[%clk 0:02:54]} 4. Qxd4 {[%clk 0:03:01]}  Nc6 {[%clk 0:02:54]} 5. Qd3 {[%clk 0:03:01]}  Qe7 {[%clk 0:02:54]} 6. Bg5 {[%clk 0:02:54]}  h6 {[%clk 0:02:49]} 7. Nd5 {[%clk 0:02:33]}  Qd6 {[%clk 0:02:49]} 8. Nxf6+ {[%clk 0:02:19]}  gxf6 {[%clk 0:02:47]} 9. Qxd6 {[%clk 0:02:20]}  Bxd6 {[%clk 0:02:48]} 10. Bxf6 {[%clk 0:02:21]}  O-O {[%clk 0:02:46]} 11. O-O-O {[%clk 0:02:19]}  Bf4+ {[%clk 0:02:40]} 12. Kb1 {[%clk 0:02:19]}  Re8 {[%clk 0:02:39]} 13. Bd3 {[%clk 0:02:13]}  Nb4 {[%clk 0:02:37]} 14. g3 {[%clk 0:02:10]}  Bd6 {[%clk 0:02:32]} 15. f4 {[%clk 0:02:06]}  Nxd3 {[%clk 0:02:30]} 16. cxd3 {[%clk 0:02:05]}  b6 {[%clk 0:02:30]} 17. Nf3 {[%clk 0:02:02]}  Bb7 {[%clk 0:02:29]} 18. Rhe1 {[%clk 0:02:01]}  Re6 {[%clk 0:02:23]} 19. Bc3 {[%clk 0:01:54]}  f5 {[%clk 0:02:03]} 20. Nd4 {[%clk 0:01:51]}  Ree8 {[%clk 0:01:54]} 21. Nxf5 {[%clk 0:01:50]}  Bf8 {[%clk 0:01:55]} 22. g4 {[%clk 0:01:32]}  c5 {[%clk 0:01:53]} 23. Ng3 {[%clk 0:01:15]}  Bd6 {[%clk 0:01:48]} 24. Rf1 {[%clk 0:01:09]}  Bf8 {[%clk 0:01:36]} 25. h4 {[%clk 0:01:06]}  b5 {[%clk 0:01:31]} 26. b3 {[%clk 0:01:04]}  c4 {[%clk 0:01:28]} 27. dxc4 {[%clk 0:01:00]}  bxc4 {[%clk 0:01:28]} 28. Rxd7 {[%clk 0:00:56]}  Bc8 {[%clk 0:01:26]} 29. Rd2 {[%clk 0:00:48]}  Bxg4 {[%clk 0:01:21]} 30. Rg1 {[%clk 0:00:47]}  Kh7 {[%clk 0:01:17]} 31. f5 {[%clk 0:00:42]}  Rad8 {[%clk 0:01:06]} 32. Rgg2 {[%clk 0:00:40]}  Rd3 {[%clk 0:00:48]} 33. Rxd3 {[%clk 0:00:39]}  cxd3 {[%clk 0:00:49]} 34. Rd2 {[%clk 0:00:37]}  Rd8 {[%clk 0:00:47]} 35. Kb2 {[%clk 0:00:35]}  Bc5 {[%clk 0:00:45]} 36. Bf6 {[%clk 0:00:27]}  Rd7 {[%clk 0:00:44]} 37. Kc3 {[%clk 0:00:27]}  Rc7 {[%clk 0:00:22]} 38. Kxd3 {[%clk 0:00:27]}  Bb4 {[%clk 0:00:20]} 39. Rc2 {[%clk 0:00:26]}  Rd7+ {[%clk 0:00:19]} 40. Ke3 {[%clk 0:00:27]}  Ba5 {[%clk 0:00:13]} 41. Bd4 {[%clk 0:00:26]}  Bd8 {[%clk 0:00:09]} 42. f6 {[%clk 0:00:25]}  Kg6 {[%clk 0:00:07]} 43. e5 {[%clk 0:00:25]}  Be6 {[%clk 0:00:06]} 44. Rg2 {[%clk 0:00:24]}  Kf7 {[%clk 0:00:06]} 45. Ne4 {[%clk 0:00:24]}  Kf8 {[%clk 0:00:05]} 46. Nd6 {[%clk 0:00:24]}  Bc7 {[%clk 0:00:03]} 47. Nc4 {[%clk 0:00:22]}  Bxc4 {[%clk 0:00:02]} 48. bxc4 {[%clk 0:00:23]}  a5 {[%clk 0:00:01]} 49. a3 {[%clk 0:00:23]}  Kf7 {[%clk 0:00:01]} 50. a4 {[%clk 0:00:24]}  Ke6 {[%clk 0:00:01]} 51. Rg7 {[%clk 0:00:24]}  Rxg7 {[%clk 0:00:01]} 52. fxg7 {[%clk 0:00:25]}  Kf7 {[%clk 0:00:01]} 53. e6+ {[%clk 0:00:24]}  Kg8 {[%clk 0:00:01]} 54. Ke4 {[%clk 0:00:25]}  Bd6 {[%clk 0:00:01]} 55. Kf5 {[%clk 0:00:25]}  h5 {[%clk 0:00:01]} 56. Kg6 {[%clk 0:00:24]}  Bc5 {[%clk 0:00:01]} 57. Bc3 {[%clk 0:00:23]}  Bb4 {[%clk 0:00:01]} 58. Bb2 {[%clk 0:00:23]}  Bc5 {[%clk 0:00:01]} 59. Kxh5 {[%clk 0:00:23]}  Bb4 {[%clk 0:00:01]} 60. Kg4 {[%clk 0:00:23]}  Bc5 {[%clk 0:00:02]} 61. Kf5 {[%clk 0:00:24]}  Bd6 {[%clk 0:00:02]} 62. Ke4 {[%clk 0:00:24]}  Bc5 {[%clk 0:00:03]} 63. Kd5 {[%clk 0:00:24]}  Bb4 {[%clk 0:00:03]} 64. Kc6 {[%clk 0:00:24]}  Be7 {[%clk 0:00:02]} 65. Kd7 {[%clk 0:00:25]}  Bxh4 {[%clk 0:00:02]} 66. e7 {[%clk 0:00:24]}  Bxe7 {[%clk 0:00:02]} 67. Kxe7 {[%clk 0:00:25]}  Kh7 {[%clk 0:00:02]} 68. Kf7 {[%clk 0:00:25]}  Kh6 {[%clk 0:00:03]} 69. g8=Q {[%clk 0:00:25]}  Kh5 {[%clk 0:00:03]} 70. Qg3 {[%clk 0:00:26]}  Kh6 {[%clk 0:00:03]} 71. Qg6# {[%clk 0:00:27]} 1-0


[Site "https://www.chess.com"]

[Event "Titled Tuesday Blitz December 13 Late 2022"]
[White "Thomforde-Toates, Noah"]
[Black "Bjelobrk, Igor"]
[WhiteFideId "30951992"]
[BlackFideId "4300726"]
[WhiteElo "2602"]
[BlackElo "2335"]
[Result "0-1"]
[Round "11"]
[TimeControl "180+1"]
[Date "2022.12.13"]
[WhiteClock "0:00:03"]
[BlackClock "0:00:08"]

1. d4 {[%clk 0:03:00]}  d5 {[%clk 0:02:46]} 2. Nc3 {[%clk 0:03:00]}  Nf6 {[%clk 0:02:45]} 3. Bf4 {[%clk 0:02:59]}  e6 {[%clk 0:02:42]} 4. e3 {[%clk 0:02:58]}  Bb4 {[%clk 0:02:39]} 5. Bd3 {[%clk 0:02:55]}  c5 {[%clk 0:02:35]} 6. dxc5 {[%clk 0:02:55]}  Nbd7 {[%clk 0:02:35]} 7. Ne2 {[%clk 0:02:52]}  Nxc5 {[%clk 0:02:34]} 8. a3 {[%clk 0:02:52]}  Nxd3+ {[%clk 0:02:34]} 9. Qxd3 {[%clk 0:02:52]}  Be7 {[%clk 0:02:33]} 10. O-O {[%clk 0:02:52]}  O-O {[%clk 0:02:33]} 11. Rfd1 {[%clk 0:02:50]}  b6 {[%clk 0:02:26]} 12. e4 {[%clk 0:02:39]}  dxe4 {[%clk 0:02:24]} 13. Qc4 {[%clk 0:02:35]}  Qe8 {[%clk 0:02:19]} 14. Nxe4 {[%clk 0:02:30]}  Nxe4 {[%clk 0:01:58]} 15. Qxe4 {[%clk 0:02:25]}  Bd7 {[%clk 0:01:45]} 16. Ng3 {[%clk 0:02:15]}  Bc6 {[%clk 0:01:43]} 17. Qe3 {[%clk 0:02:08]}  Bc5 {[%clk 0:01:41]} 18. Qc3 {[%clk 0:02:08]}  Rc8 {[%clk 0:01:37]} 19. Bd6 {[%clk 0:01:33]}  Bxd6 {[%clk 0:01:34]} 20. Rxd6 {[%clk 0:01:33]}  Bxg2 {[%clk 0:01:32]} 21. Qd3 {[%clk 0:01:25]}  Bd5 {[%clk 0:01:29]} 22. Re1 {[%clk 0:01:13]}  Bc4 {[%clk 0:01:22]} 23. Qd4 {[%clk 0:01:11]}  Qe7 {[%clk 0:01:18]} 24. b3 {[%clk 0:00:50]}  Bb5 {[%clk 0:00:59]} 25. c4 {[%clk 0:00:50]}  Bc6 {[%clk 0:00:58]} 26. h4 {[%clk 0:00:45]}  Rfd8 {[%clk 0:00:54]} 27. Nh5 {[%clk 0:00:29]}  Qf8 {[%clk 0:00:51]} 28. Rd1 {[%clk 0:00:22]}  Rxd6 {[%clk 0:00:50]} 29. Qxd6 {[%clk 0:00:22]}  Qxd6 {[%clk 0:00:50]} 30. Rxd6 {[%clk 0:00:21]}  Kf8 {[%clk 0:00:48]} 31. Nf4 {[%clk 0:00:21]}  Ke7 {[%clk 0:00:48]} 32. Rd2 {[%clk 0:00:21]}  Rd8 {[%clk 0:00:45]} 33. Rxd8 {[%clk 0:00:21]}  Kxd8 {[%clk 0:00:46]} 34. Nd3 {[%clk 0:00:21]}  Ke7 {[%clk 0:00:45]} 35. Kf1 {[%clk 0:00:21]}  f6 {[%clk 0:00:43]} 36. Ke2 {[%clk 0:00:18]}  e5 {[%clk 0:00:43]} 37. Ke3 {[%clk 0:00:17]}  Ke6 {[%clk 0:00:42]} 38. b4 {[%clk 0:00:17]}  g5 {[%clk 0:00:40]} 39. hxg5 {[%clk 0:00:15]}  fxg5 {[%clk 0:00:41]} 40. b5 {[%clk 0:00:14]}  Be8 {[%clk 0:00:35]} 41. a4 {[%clk 0:00:13]}  Bg6 {[%clk 0:00:29]} 42. Nb4 {[%clk 0:00:13]}  h5 {[%clk 0:00:25]} 43. Nc6 {[%clk 0:00:10]}  Bc2 {[%clk 0:00:11]} 44. Nxa7 {[%clk 0:00:04]}  h4 {[%clk 0:00:11]} 45. c5 {[%clk 0:00:03]}  bxc5 {[%clk 0:00:11]} 46. b6 {[%clk 0:00:03]}  Kd6 {[%clk 0:00:08]} 0-1


[Site "https://www.chess.com"]

[Event "Titled Tuesday Blitz December 13 Late 2022"]
[White "Toncheva, Nadya"]
[Black "Dudzinski, Pawel"]
[WhiteFideId "2924056"]
[BlackFideId "1117890"]
[WhiteElo "2101"]
[BlackElo "2099"]
[Result "0-1"]
[Round "11"]
[TimeControl "180+1"]
[Date "2022.12.14"]
[WhiteClock "0:00:02"]
[BlackClock "0:00:25"]

1. e4 {[%clk 0:03:00]}  c6 {[%clk 0:03:00]} 2. d4 {[%clk 0:03:00]}  d5 {[%clk 0:03:00]} 3. Nc3 {[%clk 0:03:00]}  g6 {[%clk 0:02:55]} 4. Nf3 {[%clk 0:02:59]}  Bg7 {[%clk 0:02:56]} 5. Be3 {[%clk 0:02:57]}  Bg4 {[%clk 0:02:55]} 6. Be2 {[%clk 0:02:55]}  dxe4 {[%clk 0:02:36]} 7. Nxe4 {[%clk 0:02:54]}  Nd7 {[%clk 0:02:37]} 8. h3 {[%clk 0:02:51]}  Bxf3 {[%clk 0:02:37]} 9. Bxf3 {[%clk 0:02:52]}  Ngf6 {[%clk 0:02:37]} 10. Nxf6+ {[%clk 0:02:44]}  Nxf6 {[%clk 0:02:38]} 11. c3 {[%clk 0:02:37]}  Nd5 {[%clk 0:02:37]} 12. Qd2 {[%clk 0:02:19]}  Qa5 {[%clk 0:01:39]} 13. O-O {[%clk 0:02:15]}  O-O {[%clk 0:01:30]} 14. Bh6 {[%clk 0:02:01]}  Rfe8 {[%clk 0:01:30]} 15. Bxg7 {[%clk 0:02:00]}  Kxg7 {[%clk 0:01:31]} 16. b4 {[%clk 0:01:58]}  Qa3 {[%clk 0:01:30]} 17. Rac1 {[%clk 0:01:46]}  Rad8 {[%clk 0:01:20]} 18. h4 {[%clk 0:01:44]}  e5 {[%clk 0:01:17]} 19. h5 {[%clk 0:01:38]}  e4 {[%clk 0:01:17]} 20. Be2 {[%clk 0:01:21]}  f5 {[%clk 0:01:09]} 21. Qg5 {[%clk 0:01:00]}  Nxc3 {[%clk 0:00:57]} 22. h6+ {[%clk 0:00:52]}  Kf7 {[%clk 0:00:55]} 23. Rxc3 {[%clk 0:00:37]}  Qxc3 {[%clk 0:00:49]} 24. Rc1 {[%clk 0:00:37]}  Qxd4 {[%clk 0:00:49]} 25. Bc4+ {[%clk 0:00:37]}  Rd5 {[%clk 0:00:49]} 26. Qf4 {[%clk 0:00:22]}  Qe5 {[%clk 0:00:35]} 27. Qe3 {[%clk 0:00:20]}  a6 {[%clk 0:00:30]} 28. Qb6 {[%clk 0:00:17]}  Re7 {[%clk 0:00:28]} 29. Qd8 {[%clk 0:00:14]}  e3 {[%clk 0:00:27]} 30. Bxd5+ {[%clk 0:00:08]}  Qxd5 {[%clk 0:00:24]} 31. Qxd5+ {[%clk 0:00:07]}  cxd5 {[%clk 0:00:25]} 32. fxe3 {[%clk 0:00:07]}  Rxe3 {[%clk 0:00:26]} 33. Rc7+ {[%clk 0:00:07]}  Re7 {[%clk 0:00:26]} 34. Rc8 {[%clk 0:00:08]}  Rd7 {[%clk 0:00:26]} 35. Rh8 {[%clk 0:00:06]}  Kf6 {[%clk 0:00:26]} 36. Kf2 {[%clk 0:00:06]}  Kg5 {[%clk 0:00:26]} 37. Re8 {[%clk 0:00:04]}  Kxh6 {[%clk 0:00:26]} 38. Re6 {[%clk 0:00:02]}  Kg5 {[%clk 0:00:25]} 39. Kf3 {[%clk 0:00:03]}  d4 {[%clk 0:00:25]} 40. Rb6 {[%clk 0:00:02]}  d3 {[%clk 0:00:25]} 0-1


[Site "https://www.chess.com"]

[Event "Titled Tuesday Blitz December 13 Late 2022"]
[White "Yoo, Christopher Woojin"]
[Black "Xiong, Jeffery"]
[WhiteFideId "30909694"]
[BlackFideId "2047640"]
[WhiteElo "2463"]
[BlackElo "2726"]
[Result "1-0"]
[Round "11"]
[TimeControl "180+1"]
[Date "2022.12.13"]
[WhiteClock "0:00:27"]
[BlackClock "0:00:12"]

1. Nf3 {[%clk 0:02:57]}  c5 {[%clk 0:02:58]} 2. b3 {[%clk 0:02:56]}  Nf6 {[%clk 0:02:56]} 3. Bb2 {[%clk 0:02:56]}  g6 {[%clk 0:02:57]} 4. c4 {[%clk 0:02:54]}  Bg7 {[%clk 0:02:57]} 5. g3 {[%clk 0:02:54]}  b6 {[%clk 0:02:56]} 6. Bg2 {[%clk 0:02:54]}  Bb7 {[%clk 0:02:56]} 7. O-O {[%clk 0:02:54]}  O-O {[%clk 0:02:57]} 8. Nc3 {[%clk 0:02:51]}  d5 {[%clk 0:02:48]} 9. Ne5 {[%clk 0:02:49]}  e6 {[%clk 0:02:46]} 10. e3 {[%clk 0:02:44]}  Nfd7 {[%clk 0:02:39]} 11. Nxd7 {[%clk 0:02:29]}  Nxd7 {[%clk 0:02:40]} 12. d4 {[%clk 0:02:29]}  cxd4 {[%clk 0:02:40]} 13. exd4 {[%clk 0:02:30]}  Nf6 {[%clk 0:02:39]} 14. Ba3 {[%clk 0:02:29]}  Re8 {[%clk 0:02:39]} 15. Nb5 {[%clk 0:02:29]}  Qd7 {[%clk 0:02:25]} 16. Nd6 {[%clk 0:02:23]}  Red8 {[%clk 0:02:25]} 17. Rc1 {[%clk 0:02:11]}  Bf8 {[%clk 0:01:54]} 18. Nxb7 {[%clk 0:02:06]}  Qxb7 {[%clk 0:01:48]} 19. Bb2 {[%clk 0:01:55]}  a5 {[%clk 0:01:40]} 20. a4 {[%clk 0:01:53]}  Rac8 {[%clk 0:01:39]} 21. Qd3 {[%clk 0:01:47]}  Qd7 {[%clk 0:01:37]} 22. c5 {[%clk 0:01:42]}  Rc6 {[%clk 0:01:25]} 23. Qb5 {[%clk 0:01:33]}  Rb8 {[%clk 0:01:24]} 24. b4 {[%clk 0:01:25]}  axb4 {[%clk 0:01:22]} 25. a5 {[%clk 0:01:24]}  bxc5 {[%clk 0:00:50]} 26. Qxb8 {[%clk 0:01:23]}  c4 {[%clk 0:00:50]} 27. Qb5 {[%clk 0:01:14]}  Qc8 {[%clk 0:00:45]} 28. Ba1 {[%clk 0:01:09]}  Ne8 {[%clk 0:00:43]} 29. Qa4 {[%clk 0:01:01]}  Ra6 {[%clk 0:00:40]} 30. Rfe1 {[%clk 0:00:54]}  Nc7 {[%clk 0:00:40]} 31. h4 {[%clk 0:00:49]}  Qa8 {[%clk 0:00:18]} 32. Qd7 {[%clk 0:00:45]}  Ne8 {[%clk 0:00:15]} 33. Bxd5 {[%clk 0:00:38]}  Qxd5 {[%clk 0:00:13]} 34. Qxe8 {[%clk 0:00:34]}  c3 {[%clk 0:00:11]} 35. Bxc3 {[%clk 0:00:32]}  bxc3 {[%clk 0:00:11]} 36. Rxc3 {[%clk 0:00:33]}  Qxa5 {[%clk 0:00:11]} 37. Rec1 {[%clk 0:00:28]}  Ra8 {[%clk 0:00:11]} 38. Rc8 {[%clk 0:00:28]}  Rxc8 {[%clk 0:00:11]} 39. Rxc8 {[%clk 0:00:27]}  Qe1+ {[%clk 0:00:12]} 40. Kg2 {[%clk 0:00:27]} 1-0


[Site "https://www.chess.com"]

[Event "Titled Tuesday Blitz December 13 Late 2022"]
[White "Yuan, Qingyu"]
[Black "Van Dael, Siem"]
[WhiteFideId "8609772"]
[BlackFideId "1049771"]
[WhiteElo "2359"]
[BlackElo "2336"]
[Result "1-0"]
[Round "11"]
[TimeControl "180+1"]
[Date "2022.12.13"]
[WhiteClock "0:00:35"]
[BlackClock "0:00:10"]

1. e4 {[%clk 0:03:00]}  d5 {[%clk 0:02:59]} 2. exd5 {[%clk 0:03:00]}  Nf6 {[%clk 0:02:56]} 3. d4 {[%clk 0:03:00]}  Bg4 {[%clk 0:02:54]} 4. Be2 {[%clk 0:02:52]}  Bxe2 {[%clk 0:02:53]} 5. Qxe2 {[%clk 0:02:46]}  Qxd5 {[%clk 0:02:54]} 6. Nf3 {[%clk 0:02:46]}  e6 {[%clk 0:02:53]} 7. Nc3 {[%clk 0:02:40]}  Qh5 {[%clk 0:02:49]} 8. h3 {[%clk 0:02:33]}  Nc6 {[%clk 0:02:48]} 9. Be3 {[%clk 0:02:23]}  O-O-O {[%clk 0:02:41]} 10. O-O-O {[%clk 0:02:20]}  Bb4 {[%clk 0:02:33]} 11. Qc4 {[%clk 0:02:10]}  Qa5 {[%clk 0:02:27]} 12. Ne2 {[%clk 0:02:08]}  Nd5 {[%clk 0:02:16]} 13. Kb1 {[%clk 0:02:06]}  Nb6 {[%clk 0:02:05]} 14. Qb3 {[%clk 0:02:02]}  Qb5 {[%clk 0:02:05]} 15. Nc3 {[%clk 0:01:49]}  Qa6 {[%clk 0:02:05]} 16. Ne4 {[%clk 0:01:45]}  Qb5 {[%clk 0:02:00]} 17. a3 {[%clk 0:01:29]}  a5 {[%clk 0:01:12]} 18. axb4 {[%clk 0:01:19]}  axb4 {[%clk 0:01:10]} 19. Nc5 {[%clk 0:01:07]}  Nc4 {[%clk 0:01:05]} 20. Qa4 {[%clk 0:01:01]}  Qb6 {[%clk 0:01:05]} 21. Qa8+ {[%clk 0:00:53]}  Nb8 {[%clk 0:01:05]} 22. Ne5 {[%clk 0:00:48]}  Nxe3 {[%clk 0:00:39]} 23. fxe3 {[%clk 0:00:47]}  Rhf8 {[%clk 0:00:40]} 24. b3 {[%clk 0:00:43]}  f6 {[%clk 0:00:40]} 25. Nc4 {[%clk 0:00:43]}  Qb5 {[%clk 0:00:40]} 26. Kb2 {[%clk 0:00:42]}  e5 {[%clk 0:00:39]} 27. Ne6 {[%clk 0:00:39]}  exd4 {[%clk 0:00:29]} 28. exd4 {[%clk 0:00:38]}  Rd6 {[%clk 0:00:07]} 29. Nxd6+ {[%clk 0:00:35]}  cxd6 {[%clk 0:00:08]} 30. Nxf8 {[%clk 0:00:34]}  Qc6 {[%clk 0:00:09]} 31. Rd3 {[%clk 0:00:31]}  Kc7 {[%clk 0:00:09]} 32. d5 {[%clk 0:00:30]}  Qc5 {[%clk 0:00:08]} 33. Ne6+ {[%clk 0:00:31]}  Kb6 {[%clk 0:00:08]} 34. Nxc5 {[%clk 0:00:31]}  dxc5 {[%clk 0:00:09]} 35. Qxb8 {[%clk 0:00:31]}  f5 {[%clk 0:00:09]} 36. Qd6+ {[%clk 0:00:31]}  Kb5 {[%clk 0:00:10]} 37. Qd7+ {[%clk 0:00:29]}  Kb6 {[%clk 0:00:10]} 38. Re3 {[%clk 0:00:29]}  c4 {[%clk 0:00:09]} 39. Re6+ {[%clk 0:00:29]}  Kc5 {[%clk 0:00:10]} 40. Ra1 {[%clk 0:00:30]}  c3+ {[%clk 0:00:10]} 41. Kb1 {[%clk 0:00:30]}  b5 {[%clk 0:00:11]} 42. Qd6+ {[%clk 0:00:31]}  Kd4 {[%clk 0:00:11]} 43. Qe5+ {[%clk 0:00:31]}  Kc5 {[%clk 0:00:11]} 44. d6+ {[%clk 0:00:32]}  Kc6 {[%clk 0:00:12]} 45. d7+ {[%clk 0:00:33]}  Kb7 {[%clk 0:00:12]} 46. Qd6 {[%clk 0:00:34]}  f4 {[%clk 0:00:12]} 47. d8=Q {[%clk 0:00:34]}  f3 {[%clk 0:00:10]} 48. Q8c7# {[%clk 0:00:35]} 1-0